Cogmind - Beta 16 @@@ ROGUE MODE // 2026.01.19 @ 14:28:25 Player: Lunishko Result: Self-destructed Performance ------------- Evolutions (3) 1500 Regions Visited (4) 800 Robots Destroyed (1) 5 Value Destroyed (27) 27 Prototype IDs (0) 0 Alien Tech Used (0) 0 Bonus (834) 834 TOTAL SCORE: 3166 Bonus ------- Pacifist 834 Cogmind --------- Core Integrity 656/700 Matter 250/300 Energy 250/250 System Corruption 0% Temperature Cool (0) Movement Flying (47) Location -7/Factory Parts ------- > --- POWER (2) -------- Ion Engine > --- PROPULSION (6) --- Wheel Armored Huge Wheel Cesium-ion Thruster Cesium-ion Thruster > --- UTILITY (3) ------ Small Storage Unit Improved Signal Interpreter > --- WEAPON (2) ------- Mace > --- INVENTORY (8) ---- Light Deuterium Engine Wheel High-powered Tractor Beam Assault Rifle Light Assault Rifle Grenade Launcher Great Maul Peak State ------------ > --- POWER ------------ Ion Engine Light Ion Engine > --- PROPULSION ------- Wheel Wheel Compact Wheel Compact Wheel Armored Huge Wheel > --- UTILITY ---------- Small Storage Unit Improved Signal Interpreter Reaction Control System > --- WEAPON ----------- Assault Rifle Mace > --- INVENTORY -------- Light Deuterium Engine Cesium-ion Thruster High-powered Tractor Beam Assault Rifle Light Assault Rifle Grenade Launcher Great Maul [Rating: 25] Favorites ----------- Power Ion Engine Engine Ion Engine Propulsion Wheel Treads Light Treads Wheel Wheel Flight Unit Cesium-ion Thruster Utility Small Storage Unit Device Reaction Control System Storage Small Storage Unit Processor Improved Signal Interpreter Weapon Assault Rifle Ballistic Gun Assault Rifle Impact Weapon Mace Build | -11 -10 -9 -8 -7 ------- Run | Yrd Mat Mat Mat Fac Slots Evolved 6 | . . 2 2 2 Power 1 | . . . 1 . Propulsion 4 | . . 2 . 2 Utility 1 | . . . 1 . Weapon . | . . . . . Parts Attached 17 | 7 . . 5 5 Power 2 | 1 . . 1 . Engine 2 | 1 . . 1 . Core . | . . . . . Reactor . | . . . . . Propulsion 8 | 3 . . 1 4 Treads 1 | 1 . . . . Leg . | . . . . . Wheel 5 | 2 . . 1 2 Hover . | . . . . . Flight 2 | . . . . 2 Utility 4 | 1 . . 2 1 Device 2 | . . . 1 1 Storage 1 | 1 . . . . Processor 1 | . . . 1 . Hackware . | . . . . . Protection . | . . . . . Artifact . | . . . . . Weapon 3 | 2 . . 1 . Energy Gun . | . . . . . Energy Cannon . | . . . . . Ballistic Gun 2 | 2 . . . . Ballistic Cannon . | . . . . . Launcher . | . . . . . Special Weapon . | . . . . . Impact Weapon 1 | . . . 1 . Slashing Weapon . | . . . . . Piercing Weapon . | . . . . . Special Melee Weapon . | . . . . . Unidentified Prototypes . | . . . . . Parts Lost 6 | . . . . 6 Power 1 | . . . . 1 Propulsion 2 | . . . . 2 Utility 2 | . . . . 2 Weapon 1 | . . . . 1 Highest Loss Streak 5 | . . . . 5 To Critical Strikes . | . . . . . Average Backups 4 | 2 2 3 4 7 Power . | . 1 1 . 1 Propulsion . | . . . . 1 Utility . | . . . . . Weapon 2 | . 1 2 3 4 Tool/Special . | . . . . . Unused Backups 6 | 1 . . . 5 Power 1 | . . . . 1 Propulsion 1 | 1 . . . . Utility 1 | . . . . 1 Weapon 3 | . . . . 3 Tool/Special . | . . . . . Average Slot Usage (%) 76 | . 85 66 76 83 Engine 14 | . 14 11 18 14 Wheel 26 | . 28 22 24 31 Device 2 | . . . 4 4 Storage 9 | . 14 11 9 7 Processor 2 | . . . 2 7 Ballistic Gun 15 | . 28 22 11 6 Impact Weapon 3 | . . . 6 7 Peak Build Rating 25 | 6 6 6 16 25 Average Rating 11 | 4 6 6 11 22 On Entrance 6 | . 6 6 6 16 Avg Prop Armor Cover (%) 11 | . . . . 11 Naked Turns . | . . . . . Heaviest Build 18 | 13 13 13 18 18 Greatest Support 36 | 26 26 26 36 36 Greatest Overweight (x) . | . . . . . Average Overweight (x) . | . . . . . Largest Inventory Capacity 8 | 8 8 8 8 8 Average Capacity 7 | 7 8 8 8 8 Most Carried 8 | 5 3 3 7 8 Average Carried 4 | 2 2 3 4 7 Final Capacity 8 | 8 8 8 8 8 Final Carried 7 | 2 3 3 6 7 Class Distribution -------------------- 55% | Mutant 44% | Scientist-Mutant Dominant Class ---------------- Mutant | -10/Materials Mutant | -9/Materials Scientist-Mutant | -8/Materials Scientist-Mutant | -7/Factory Resources | -11 -10 -9 -8 -7 ----------- Run | Yrd Mat Mat Mat Fac Matter Collected 300 | 232 . . 68 . Remotely . | . . . . . Salvage Created 24 | . . . . 24 Parts . | . . . . . Haulers Intercepted . | . . . . . Recyclers Shooed . | . . . . . Parts Field Recycled . | . . . . . Retrieved Matter . | . . . . . Parts Self-Destructed . | . . . . . Prevented . | . . . . . Parts Restored . | . . . . . Kills | -11 -10 -9 -8 -7 ------- Run | Yrd Mat Mat Mat Fac Combat Hostiles Destroyed 1 | . . . . 1 Classes Destroyed 1 | . . . . 1 Swarmer 1 | . . . . 1 Best Kill Streak 1 | . . . . 1 Combat Bots Only 1 | . . . . 1 Max Kills in Single Turn 1 | . . . . 1 Gunslinging . | . . . . . Exploded . | . . . . . Melee . | . . . . . Uniques/NPCs Destroyed . | . . . . . Combat | -11 -10 -9 -8 -7 -------- Run | Yrd Mat Mat Mat Fac Hostile Shots Fired 85 | . 5 23 15 42 Missed 35 | . 2 12 6 15 Hits 50 | . 3 11 9 27 Projectile 50 | . 3 11 9 27 Critical Strikes 1 | . . . 1 . Damage Taken 604 | . 35 132 148 289 Core 137 | . . 57 36 44 Absorbed by Shields . | . . . . . Core Remaining (%) 94 | 100 100 85 93 . Volleys Fired . | . . . . . Largest . | . . . . . Hottest . | . . . . . Shots Fired . | . . . . . Gun . | . . . . . Cannon . | . . . . . Launcher . | . . . . . Special . | . . . . . Kinetic . | . . . . . Thermal . | . . . . . Explosive . | . . . . . Electromagnetic . | . . . . . Robot Hit Streak . | . . . . . Robot Miss Streak . | . . . . . Penetration Max . | . . . . . Secondary Targets . | . . . . . Shots Hit Robots 1 | . . . . 1 Core Hits . | . . . . . Critical Kills . | . . . . . Critical Parts Destroyed 1 | . . . . 1 Critical Strikes 1 | . . . . 1 Smash 1 | . . . . 1 Melee Attacks 5 | . . . 1 4 Impact 5 | . . . 1 4 Slashing . | . . . . . Piercing . | . . . . . Sneak Attacks . | . . . . . Combat Hostiles . | . . . . . Follow-up Attacks . | . . . . . Damage Inflicted 40 | . . . . 40 Guns . | . . . . . Cannons . | . . . . . Explosions . | . . . . . Melee 40 | . . . . 40 Ramming . | . . . . . Kinetic . | . . . . . Thermal . | . . . . . Explosive . | . . . . . Electromagnetic . | . . . . . Impact 40 | . . . . 40 Slashing . | . . . . . Piercing . | . . . . . Highest Corruption . | . . . . . Average Corruption . | . . . . . Corruption Purged . | . . . . . Corruption Blocked . | . . . . . Overload Shots . | . . . . . Overflow Damage 40 | . . . . 40 Projectiles . | . . . . . Explosions . | . . . . . Melee 40 | . . . . 40 Knockbacks . | . . . . . Impact . | . . . . . Kinetic . | . . . . . Secondary . | . . . . . Self-Inflicted Damage . | . . . . . Shots . | . . . . . Rammed . | . . . . . Targets Rammed . | . . . . . Kicked . | . . . . . Crushed . | . . . . . Highest Temperature 6 | . . . 6 . Average Temperature 6 | . . . 6 . Received Heat Transfer 219 | . 18 78 99 24 Siege Activations . | . . . . . Martial Activations . | . . . . . Shielding Activations . | . . . . . Robots Disrupted . | . . . . . Combat Hostiles . | . . . . . Robots Corrupted 1 | . . . . 1 Combat Hostiles 1 | . . . . 1 Parts Fried 1 | . . . . 1 Impact Corruptions 1 | . . . . 1 Robots Melted . | . . . . . Combat Hostiles . | . . . . . Parts Melted . | . . . . . Heat Transferred . | . . . . . Parts Sabotaged . | . . . . . Parts Stolen . | . . . . . Parts Stripped . | . . . . . Power Chain Reactions . | . . . . . Alert | -11 -10 -9 -8 -7 ------- Run | Yrd Mat Mat Mat Fac Maximum Alert Level . | . . . . . Low Security (%) 100 | 100 100 100 100 100 Level 1 . | . . . . . Level 2 . | . . . . . Level 3 . | . . . . . Level 4 . | . . . . . Level 5 . | . . . . . High Security . | . . . . . Max Security . | . . . . . Peak Influence 70 | . 5 70 30 20 Initial 27 | . . . 27 13 Average 10 | . 1 26 15 2 Influence Increases 191 | . 9 109 36 37 Destroy 0b10 Robot/C 20 | . . . . 20 Successful Hack 32 | . 9 4 5 14 Destroy Structure 4 | . . . 1 3 Lose Combat Pursuer 135 | . . 105 30 . Influence Decreases 181 | . 9 44 71 57 Entered New Map 55 | . . . 38 17 Time Decay 110 | . 9 44 33 24 Lost Part 16 | . . . . 16 Squads Dispatched 4 | . . 2 2 . Investigation . | . . . . . Extermination . | . . . . . Reinforcement 4 | . . 2 2 . Assault . | . . . . . Garrison . | . . . . . Intercept . | . . . . . Searches Triggered . | . . . . . Construction Impeded . | . . . . . Haulers Reinforced . | . . . . . Active Scanning Responses . | . . . . . Cargo Convoy Interrupts . | . . . . . Stealth | -11 -10 -9 -8 -7 --------- Run | Yrd Mat Mat Mat Fac Distress Signals 4 | . 1 2 1 . Communications Jammed . | . . . . . Distress Signals . | . . . . . Times Spotted 27 | . 3 11 8 5 Peak Tracking Total 8 | . 3 8 5 5 Tactical Retreats 6 | . . 5 1 . Traps | -11 -10 -9 -8 -7 ------- Run | Yrd Mat Mat Mat Fac Traps Triggered 1 | . . . . 1 Indirectly . | . . . . . Trap Hack Attempts . | . . . . . Triggered . | . . . . . Disarmed . | . . . . . Reprogrammed . | . . . . . Reused . | . . . . . Traps Extracted . | . . . . . Installed . | . . . . . Triggered . | . . . . . Machines | -11 -10 -9 -8 -7 ---------- Run | Yrd Mat Mat Mat Fac Machines Disabled . | . . . . . Max in Single Turn . | . . . . . Machines Repaired . | . . . . . Machines Dismantled . | . . . . . Machines Sabotaged . | . . . . . Overloaded Fab Kills . | . . . . . Hacking | -11 -10 -9 -8 -7 --------- Run | Yrd Mat Mat Mat Fac Machines Accessed 8 | . 2 2 2 2 Terminals 5 | . 2 1 1 1 Fabricators . | . . . . . Repair Stations . | . . . . . Recycling Units . | . . . . . Scanalyzers 3 | . . 1 1 1 Garrison Access . | . . . . . Total Hacks 27 | . 5 10 7 5 Successful 15 | . 2 5 5 3 Failed 11 | . 3 5 1 2 Catastrophic 4 | . 2 2 . . Database Lockouts 1 | . . . 1 . Manual 11 | . 5 5 1 . Terminals 16 | . 5 5 4 2 Fabricators . | . . . . . Repair Stations . | . . . . . Recycling Units . | . . . . . Scanalyzers 11 | . . 5 3 3 Garrison Access . | . . . . . Terminal Hacks 3 | . . . 2 1 Locate Traps 1 | . . . 1 . Zone Layout 2 | . . . 1 1 Fabricator Hacks . | . . . . . Repair Station Hacks . | . . . . . Recycling Unit Hacks . | . . . . . Scanalyzer 8 | . . 4 2 2 Retrieve Study 8 | . . 4 2 2 Garrison Access Hacks . | . . . . . Unauthorized Hacks 4 | . 2 1 1 . Terminals 4 | . 2 1 1 . Botnet 4 | . 2 1 1 . Fabricators . | . . . . . Repair Stations . | . . . . . Recycling Units . | . . . . . Scanalyzers . | . . . . . Garrison Access . | . . . . . Data Cores Recovered . | . . . . . Used . | . . . . . Hacking Detections 5 | . 2 1 1 1 Full Trace Events . | . . . . . Feedback Events . | . . . . . Feedback Blocked . | . . . . . Robot Schematics Acquired . | . . . . . Robots Built . | . . . . . Authchips . | . . . . . Time . | . . . . . Total Robot Build Rating . | . . . . . Part Schematics Acquired . | . . . . . Parts Built . | . . . . . Authchips . | . . . . . Time . | . . . . . Total Part Build Rating . | . . . . . Part Studies Acquired 8 | . . 4 2 2 Parts Repaired . | . . . . . Time . | . . . . . Parts Recycled . | . . . . . Recycled Matter . | . . . . . Retrieved Matter . | . . . . . Retrieved Components . | . . . . . Parts Scanalyzed . | . . . . . Part Schematics Acquired . | . . . . . Parts Damaged . | . . . . . Bothacking | -11 -10 -9 -8 -7 ------------ Run | Yrd Mat Mat Mat Fac Used RIF Installer . | . . . . . Robots Hacked . | . . . . . Non-combat . | . . . . . Combat . | . . . . . Robot Hacks Applied . | . . . . . Relay Couplers Released . | . . . . . Fabnet Peak Effective % . | . . . . . Robots Rewired . | . . . . . Allies Hacked . | . . . . . Hacks Repelled . | . . . . . Allies | -11 -10 -9 -8 -7 -------- Run | Yrd Mat Mat Mat Fac Total Allies . | . . . . . Largest Group . | . . . . . Highest-Rated Group . | . . . . . Highest-Rated Ally . | . . . . . Total Orders . | . . . . . Ally Attacks . | . . . . . Total Damage . | . . . . . Kills . | . . . . . Allies Corrupted . | . . . . . Allies Melted . | . . . . . Intel | -11 -10 -9 -8 -7 ------- Run | Yrd Mat Mat Mat Fac Active Infowar (turns) . | . . . . . Robot Analysis Total . | . . . . . Derelict Logs Recovered . | . . . . . Drone Launches . | . . . . . Drone Recoveries . | . . . . . Exploration | -11 -10 -9 -8 -7 ------------- Run | Yrd Mat Mat Mat Fac Turns Passed 613 | 98 80 158 93 184 Spaces Moved 657 | 56 88 191 102 220 Core 1 | 1 . . . . Treads 46 | 46 . . . . Legs . | . . . . . Wheels 610 | 9 88 191 102 220 Hover . | . . . . . Flight . | . . . . . Fastest Speed 50 | 50 90 80 76 70 Average Speed 85 | 146 90 82 76 73 Slowest Speed 160 | 160 90 90 80 76 Overloaded Moves . | . . . . . Propulsion Burnouts . | . . . . . Robots Hopped . | . . . . . Potential Cave-ins . | . . . . . Cave-ins Triggered . | . . . . . Exploration Rate (%) 16 | 4 22 26 21 9 Regions Visited 4 Branch Regions . Pre-discovered Areas . | . . . . . Known Exits Taken 1 | . . . 1 . Unknown Exits Taken 3 | 1 1 1 . . Scrap Searched . | . . . . . Spaces Dug 4 | . . . 1 3 Terrain Destroyed 4 | . . . 1 3 Melee 4 | . . . 1 3 Projectile . | . . . . . AOE . | . . . . . Terrain Rammed . | . . . . . Walls Destroyed . | . . . . . Machines Disabled . | . . . . . Actions | -11 -10 -9 -8 -7 --------- Run | Yrd Mat Mat Mat Fac Total 696 | 69 88 190 115 234 Wait . | . . . . . Move 653 | 55 87 190 101 220 Hop . | . . . . . Pick Up 17 | 5 1 . 7 4 Fast Attach 7 | 5 . . . 2 Attach 9 | 1 . . 5 3 Detach 1 | . . . 1 . Swap 2 | 1 . . . 1 Drop 2 | 2 . . . . Fire . | . . . . . Melee 5 | . . . 1 4 Ram . | . . . . . Kick . | . . . . . Crush . | . . . . . Escape Stasis . | . . . . . Rewire . | . . . . . Trap . | . . . . . Miscellaneous . | . . . . . Route ------- -11/Scrapyard -10/Materials -9/Materials -8/Materials -7/Factory History --------- Turn | Location | Event 25 | -11/Scrapyard | Discovered new exit (range 16) 99 | -11/Scrapyard | Entered Materials 176 | -10/Materials | Discovered new exit (range 4) 179 | -10/Materials | Entered another Materials area 179 | -9/Materials | Evolved 2 slots: Propulsion x2 302 | -9/Materials | Build established: Mutant 332 | -9/Materials | Discovered new exit (range 7) 337 | -9/Materials | Entered another Materials area 337 | -8/Materials | Evolved 2 slots: Power x1, Utility x1 360 | -8/Materials | Central database locked down 422 | -8/Materials | Discovered new exit (range 12) 429 | -8/Materials | Identified exit to Factory 430 | -8/Materials | Entered Factory 430 | -7/Factory | Evolved 2 slots: Propulsion x2 614 | -7/Factory | Self-destructed Last Messages --------------- Retrieving Zone 5N layout... Downloaded map data. 00549_ ALERT: All DSF locations entering lockdown mode. 00552_ Acquired Cesium-ion Thruster+. 00552_ Reaction Control System destroyed. 00560_ Triggered Blade Trap. 00560_ Massive razor-sharp blades shoot up from within the floor. 00560_ Lgt. Ion Engine+ severed. 00561_ Acquired Lgt. Ion Engine+. 00600_ Acquired Reaction Control System. 00602_ Assault Rifle destroyed. 00603_ Lgt. Ion Engine+ destroyed. 00605_ Reaction Control System destroyed. 00608_ Com. Wheel+ destroyed. 00611_ S-27 Virus suffers critical hit (Smash). 00611_ Destroyed Autogun. 00611_ S-27 Virus system corrupted by crushing effect. 00612_ S-27 Virus system terminally corrupted. 00612_ VTOL Module fried. 00612_ Com. Wheel+ destroyed. Map ----- +----------------------------------------------------+ | ?????????????????????????????????????# """ """ # | | ?????????????????????????????????????# """ """?# | | ?????????????????????????????????????# """ "???# | | ??????????????????????????????? ?????# ?????# | | ?????????????????????##########/#######+######## | | ?????????????????????# | | ?????????????????????# | | ?????????????????????# | | ???????????????????### | | ?????????????????? | | ?????????????????? ################ | | ??????????????????? " " #?? #?????? | | ???????????????????? " " # #????? | | ???????????????????? " " + ! #???# " | | ??????????????????? " " # #???# " | | ??????????????????# " " #?? #???# | | ??????????????????# " " #???? #???? | | ??????????????????# " " #####?????? #?????" | | ??????????????????# " " #????????????#?????? | | ??????????????????# " " """ #??????????????????? | | ??????????????????# R" #??????????????????? | | ??????????????????# """ #??????????????????? | | ??????????????????# #??????????????????? | | ??????????????????+ % #??????????????????? | | ??????????????????#+####+####+##?????????????????? | | ??????????????????# @ s #?????????????????? | | ??????????????????# ! s ! #?????????????????? | | ??????????????????# s #?????????????????? | | ??????????????????# """" #?????????????????? | | ??????????????????# """" #?????????????????? | | ??????????????????# """" #?????????????????? | | ??????????????????# """" /k????????????????? | | ????????????????????"""" !!! ###???????????????? | | ?????????????????????""" !!! #?????????????????? | | ?????????????????????""" !!! #?????????????????? | | ?????????????????????? #?????????????????? | | ?????????????????????? #?????????????????? | | ??????????????????????##########?????????????????? | | ?????????????????????????????????????????????????? | | ?????????????????????????????????????????????????? | | ?????????????????????????????????????????????????? | | ?????????????????????????????????????????????????? | | ?????????????????????????????????????????????????? | | ?????????????????????????????????????????????????? | | ?????????????????????????????????????????????????? | | ?????????????????????????????????????????????????? | | ?????????????????????????????????????????????????? | | ?????????????????????????????????????????????????? | | ?????????????????????????????????????????????????? | | ?????????????????????????????????????????????????? | +----------------------------------------------------+ Best States ------------- Heat Dissipation 34 Energy Generation 18 Energy Capacity 275 Matter Stores 290 Matter Capacity 300 Sight Range 16 Terrain Scan Density 10 Evasion (%) 46 Recoil Reduction 1 Item Schematics ----------------- None Robot Schematics ------------------ None Fabricated ------------ Nothing Repaired ---------- Nothing Studied --------- Wheel | -9/Materials | Hacked Com. Wheel | -9/Materials | Hacked Ion Engine | -9/Materials | Hacked Lgt. Ion Engine | -9/Materials | Hacked Lgt. Deuterium Engine | -8/Materials | Hacked Mace | -8/Materials | Hacked Arm. Huge Wheel | -7/Factory | Hacked Cesium-ion Thruster | -7/Factory | Hacked Alien Tech Used ----------------- None Achievements -------------- None Challenges ------------ None Game ------ Seed JunkRocketSlayer Manual? 0 Play Time 00:13:53 Cumulative 36.0 hours Start 2026.01.19 @ 13:58:09 End 2026.01.19 @ 14:28:25 Sessions 1 Manual Loads 0 Difficulty Rogue Special Mode None Game No. 37 Rogue 37 Adventurer 0 Explorer 0 Win Type - Total 1 Types 1/0/0/0/0/0/0/0/0/0 Lore% 29 Gallery% 25 Achievement% 26 Wizard Run 0 Options --------- Layout 0 ASCII 0 Keyboard 0 Movement Mouse Keybinds 0 Fullscreen 2 Font 36/Smallcaps Map View 76x50 Zoom Use 0% Tactical HUD 1 Map Filters NONE Filters NONE Steam 1 RUN: ba2fa49c-e402-40a3-835e-4ee3316ef6d1